[Event "*** Titled Tuesday Blitz"]
[Site "Chess.com"]
[Date "2018.12.04"]
[Round "10"]
[White "NeverEverForever1990"]
[Black "Fins0905"]
[Result "0-1"]
[WhiteElo "2457"]
[BlackElo "2645"]
[TimeControl "180+2"]
[EndTime "15:21:46 PST"]
[Termination "Fins0905 won by checkmate"]

1. d4 {[%clk 0:03:01.9]} 1... d5 {[%clk 0:03:00.1]} 2. c4 {[%clk 0:02:57.5]}
2... c6 {[%clk 0:03:01]} 3. cxd5 {[%clk 0:02:58.1]} 3... cxd5 {[%clk 0:03:02.1]}
4. Bf4 {[%clk 0:02:59.6]} 4... Nf6 {[%clk 0:03:01.9]} 5. Nc3 {[%clk 0:03:00.1]}
5... Nc6 {[%clk 0:03:03.1]} 6. e3 {[%clk 0:03:00.8]} 6... Bf5 {[%clk 0:03:01.2]}
7. Qb3 {[%clk 0:03:00.9]} 7... Na5 {[%clk 0:03:01.7]} 8. Qa4+ {[%clk 0:03:01.9]}
8... Bd7 {[%clk 0:03:02.9]} 9. Qc2 {[%clk 0:03:03.2]} 9... e6 {[%clk 0:03:03.2]}
10. Bd3 {[%clk 0:03:04]} 10... Rc8 {[%clk 0:02:58.8]} 11. Nf3 {[%clk 0:02:54.5]}
11... Nh5 {[%clk 0:02:59.8]} 12. Bg5 {[%clk 0:02:49.1]} 12... f6 {[%clk
0:02:57.8]} 13. Bh4 {[%clk 0:02:49.4]} 13... g5 {[%clk 0:02:57.5]} 14. Bg3
{[%clk 0:02:45.5]} 14... f5 {[%clk 0:02:47.6]} 15. Be5 {[%clk 0:02:43.5]} 15...
Bg7 {[%clk 0:02:42]} 16. Bxg7 {[%clk 0:02:28.8]} 16... Nxg7 {[%clk 0:02:42.8]}
17. Ne5 {[%clk 0:02:29.9]} 17... Nc6 {[%clk 0:02:34.6]} 18. Nxc6 {[%clk
0:02:29.2]} 18... Rxc6 {[%clk 0:02:31.9]} 19. Qe2 {[%clk 0:02:28.8]} 19... O-O
{[%clk 0:02:28.3]} 20. f4 {[%clk 0:02:19.5]} 20... gxf4 {[%clk 0:02:14.8]} 21.
exf4 {[%clk 0:02:19.1]} 21... Qb6 {[%clk 0:02:13.7]} 22. Qf2 {[%clk 0:02:11.6]}
22... Nh5 {[%clk 0:02:06.6]} 23. O-O {[%clk 0:02:11.8]} 23... Nf6 {[%clk
0:02:07.9]} 24. Rae1 {[%clk 0:02:05.5]} 24... Ng4 {[%clk 0:02:05.4]} 25. Qg3
{[%clk 0:01:57.7]} 25... Qxd4+ {[%clk 0:01:54.6]} 26. Kh1 {[%clk 0:01:59.4]}
26... Qg7 {[%clk 0:01:45.9]} 27. Re2 {[%clk 0:01:43.1]} 27... a6 {[%clk
0:01:38.2]} 28. Rfe1 {[%clk 0:01:42.5]} 28... Kh8 {[%clk 0:01:26.5]} 29. Nxd5
{[%clk 0:01:29.9]} 29... exd5 {[%clk 0:01:02.9]} 30. Re7 {[%clk 0:01:28.5]}
30... Qxb2 {[%clk 0:01:03.4]} 31. Rxd7 {[%clk 0:01:20.8]} 31... Rc1 {[%clk
0:00:51.8]} 32. Bxf5 {[%clk 0:01:05.4]} 32... Nf2+ {[%clk 0:00:37.5]} 33. Qxf2
{[%clk 0:01:01.2]} 33... Qxf2 {[%clk 0:00:39.1]} 34. Rxc1 {[%clk 0:00:55.3]}
34... Qxf4 {[%clk 0:00:37.9]} 35. Rcc7 {[%clk 0:00:49]} 35... Qf1# {[%clk
0:00:38.4]} 0-1

[Event "*** Titled Tuesday Blitz"]
[Site "Chess.com"]
[Date "2018.12.04"]
[Round "10"]
[White "Zarikovs1999"]
[Black "Godzillator"]
[Result "0-1"]
[WhiteElo "2343"]
[BlackElo "2374"]
[TimeControl "180+2"]
[EndTime "15:21:57 PST"]
[Termination "Godzillator won by resignation"]

1. Nf3 {[%clk 0:03:01.9]} 1... d5 {[%clk 0:03:00.8]} 2. g3 {[%clk 0:02:58.4]}
2... Nf6 {[%clk 0:03:00.5]} 3. Bg2 {[%clk 0:02:58.9]} 3... c6 {[%clk 0:03:01.8]}
4. O-O {[%clk 0:02:59.7]} 4... Bg4 {[%clk 0:03:02.7]} 5. c4 {[%clk 0:02:58.9]}
5... e6 {[%clk 0:02:56.8]} 6. b3 {[%clk 0:02:52.2]} 6... Nbd7 {[%clk 0:02:56.9]}
7. Bb2 {[%clk 0:02:53]} 7... Be7 {[%clk 0:02:58.2]} 8. Qc2 {[%clk 0:02:54.3]}
8... O-O {[%clk 0:02:58.7]} 9. d3 {[%clk 0:02:54.5]} 9... a5 {[%clk 0:02:57.9]}
10. Nbd2 {[%clk 0:02:53.3]} 10... a4 {[%clk 0:02:58.2]} 11. bxa4 {[%clk
0:02:52.1]} 11... Nb6 {[%clk 0:02:56]} 12. e4 {[%clk 0:02:31.5]} 12... Nxa4
{[%clk 0:02:55.3]} 13. e5 {[%clk 0:02:25]} 13... Nxb2 {[%clk 0:02:52.2]} 14.
Qxb2 {[%clk 0:02:24.6]} 14... Nd7 {[%clk 0:02:51.9]} 15. Qxb7 {[%clk 0:02:15.6]}
15... Nc5 {[%clk 0:02:49.6]} 16. Qxc6 {[%clk 0:01:51.8]} 16... Nxd3 {[%clk
0:02:50.6]} 17. cxd5 {[%clk 0:01:51.7]} 17... Nb4 {[%clk 0:02:50.9]} 18. Qc4
{[%clk 0:01:48.9]} 18... Bxf3 {[%clk 0:02:47.4]} 19. Bxf3 {[%clk 0:01:39.9]}
19... exd5 {[%clk 0:02:47]} 20. Qb3 {[%clk 0:01:30]} 20... Rb8 {[%clk
0:02:29.7]} 21. a3 {[%clk 0:01:27.5]} 21... Nc6 {[%clk 0:02:29.1]} 22. Qxd5
{[%clk 0:01:23.7]} 22... Qxd5 {[%clk 0:02:28.6]} 23. Bxd5 {[%clk 0:01:25.6]}
23... Nxe5 {[%clk 0:02:30]} 24. a4 {[%clk 0:01:24.4]} 24... Rfd8 {[%clk
0:02:29.7]} 25. Bxf7+ {[%clk 0:00:31.9]} 25... Kxf7 {[%clk 0:02:27.8]} 26. Ne4
{[%clk 0:00:32.6]} 26... Rb4 {[%clk 0:02:21.5]} 27. Nc3 {[%clk 0:00:32.3]} 27...
Bf6 {[%clk 0:02:14.2]} 28. Rac1 {[%clk 0:00:25.9]} 28... Nf3+ {[%clk 0:02:11.1]}
29. Kg2 {[%clk 0:00:26.5]} 29... Nd2 {[%clk 0:02:11.8]} 30. Rfd1 {[%clk
0:00:26.5]} 30... Nb3 {[%clk 0:02:12.8]} 31. Rxd8 {[%clk 0:00:23.8]} 31... Bxd8
{[%clk 0:02:13.2]} 32. Rd1 {[%clk 0:00:24.4]} 32... Bf6 {[%clk 0:02:10.6]} 33.
Rd7+ {[%clk 0:00:17.7]} 33... Ke6 {[%clk 0:02:04.4]} 34. Rc7 {[%clk 0:00:18.6]}
34... Nd4 {[%clk 0:01:59.1]} 35. Ne4 {[%clk 0:00:16.1]} 35... Be5 {[%clk
0:01:52.3]} 36. Ra7 {[%clk 0:00:14.3]} 36... Kd5 {[%clk 0:01:51.2]} 37. Ng5
{[%clk 0:00:14.3]} 37... h6 {[%clk 0:01:50.2]} 38. Nf7 {[%clk 0:00:14.5]} 38...
Bf6 {[%clk 0:01:50.8]} 39. Nd8 {[%clk 0:00:11.3]} 39... Rb8 {[%clk 0:01:46.2]}
40. Nb7 {[%clk 0:00:05.8]} 40... Nc6 {[%clk 0:01:45.5]} 41. Na5 {[%clk
0:00:02.5]} 41... Nxa7 {[%clk 0:01:45.5]} 0-1

[Event "*** Titled Tuesday Blitz"]
[Site "Chess.com"]
[Date "2018.12.04"]
[Round "10"]
[White "Durarbayli"]
[Black "champ2005"]
[Result "1-0"]
[WhiteElo "2718"]
[BlackElo "2679"]
[TimeControl "180+2"]
[EndTime "15:22:05 PST"]
[Termination "Durarbayli won by resignation"]

1. e4 {[%clk 0:02:58.8]} 1... c6 {[%clk 0:03:01.2]} 2. d4 {[%clk 0:02:58.4]}
2... d5 {[%clk 0:03:02.7]} 3. e5 {[%clk 0:03:00]} 3... Bf5 {[%clk 0:03:03.4]} 4.
Nf3 {[%clk 0:03:00.8]} 4... e6 {[%clk 0:03:04.2]} 5. Be2 {[%clk 0:03:01.7]} 5...
Ne7 {[%clk 0:03:05.2]} 6. O-O {[%clk 0:03:01.8]} 6... Ng6 {[%clk 0:03:06.1]} 7.
a4 {[%clk 0:03:02.4]} 7... Nd7 {[%clk 0:03:05.2]} 8. a5 {[%clk 0:03:03.4]} 8...
a6 {[%clk 0:03:06.5]} 9. Bg5 {[%clk 0:02:58.9]} 9... Be7 {[%clk 0:03:06.6]} 10.
Bxe7 {[%clk 0:03:00.2]} 10... Qxe7 {[%clk 0:03:07.9]} 11. c3 {[%clk 0:02:51.8]}
11... O-O {[%clk 0:03:05.9]} 12. b4 {[%clk 0:02:52.5]} 12... f6 {[%clk
0:03:06.6]} 13. exf6 {[%clk 0:02:51.1]} 13... Nxf6 {[%clk 0:03:06.2]} 14. Nbd2
{[%clk 0:02:50.8]} 14... e5 {[%clk 0:02:59.5]} 15. dxe5 {[%clk 0:02:51.9]} 15...
Nxe5 {[%clk 0:03:01.1]} 16. Nd4 {[%clk 0:02:53.5]} 16... Bd3 {[%clk 0:02:52]}
17. Re1 {[%clk 0:02:49.2]} 17... Qd6 {[%clk 0:02:45.3]} 18. f4 {[%clk
0:02:27.7]} 18... Bxe2 {[%clk 0:02:20]} 19. fxe5 {[%clk 0:02:10.3]} 19... Bxd1
{[%clk 0:02:20.4]} 20. exd6 {[%clk 0:02:11.8]} 20... Bg4 {[%clk 0:02:20]} 21. h3
{[%clk 0:02:12.5]} 21... Bh5 {[%clk 0:02:06.6]} 22. Re7 {[%clk 0:02:03.1]} 22...
Rf7 {[%clk 0:02:04.4]} 23. Rae1 {[%clk 0:01:54.6]} 23... Rd8 {[%clk 0:01:58.4]}
24. Rxf7 {[%clk 0:01:47.8]} 24... Bxf7 {[%clk 0:02:00.3]} 25. Re7 {[%clk
0:01:48.7]} 25... Rd7 {[%clk 0:01:56.5]} 26. Rxd7 {[%clk 0:01:31.2]} 26... Nxd7
{[%clk 0:01:57.4]} 27. N2b3 {[%clk 0:01:32.8]} 27... Kf8 {[%clk 0:01:43.1]} 28.
Nc5 {[%clk 0:01:32.3]} 28... Nxc5 {[%clk 0:01:42.8]} 29. bxc5 {[%clk 0:01:34.2]}
29... Ke8 {[%clk 0:01:42.4]} 30. Kf2 {[%clk 0:01:33.3]} 30... Kd7 {[%clk
0:01:43.6]} 31. Ke3 {[%clk 0:01:34.4]} 31... g5 {[%clk 0:01:29.7]} 32. Nf3
{[%clk 0:01:31.2]} 32... h6 {[%clk 0:01:23.7]} 33. h4 {[%clk 0:01:13.1]} 33...
gxh4 {[%clk 0:01:22.6]} 34. Ne5+ {[%clk 0:00:24.4]} 34... Ke6 {[%clk 0:01:20.8]}
35. Nxf7 {[%clk 0:00:25.9]} 35... Kxf7 {[%clk 0:01:21.9]} 36. Kf4 {[%clk
0:00:27.4]} 36... Ke6 {[%clk 0:01:23]} 37. Kg4 {[%clk 0:00:28.5]} 37... Kd7
{[%clk 0:01:24.3]} 38. Kxh4 {[%clk 0:00:29.7]} 38... b6 {[%clk 0:01:24.2]} 39.
axb6 {[%clk 0:00:30.8]} 39... Kc8 {[%clk 0:01:23.4]} 40. Kg4 {[%clk 0:00:32.2]}
40... a5 {[%clk 0:01:24.6]} 41. Kf5 {[%clk 0:00:33.8]} 41... a4 {[%clk
0:01:25.4]} 42. Ke6 {[%clk 0:00:35.5]} 42... a3 {[%clk 0:01:26.9]} 43. d7+
{[%clk 0:00:37.1]} 43... Kb7 {[%clk 0:01:25.6]} 44. d8=Q {[%clk 0:00:37.7]}
44... a2 {[%clk 0:01:27]} 45. Qc7+ {[%clk 0:00:36.2]} 1-0

[Event "*** Titled Tuesday Blitz"]
[Site "Chess.com"]
[Date "2018.12.04"]
[Round "10"]
[White "Yurovskykh_Oleksandr"]
[Black "ChainsOfFantasia"]
[Result "0-1"]
[WhiteElo "2474"]
[BlackElo "2414"]
[TimeControl "180+2"]
[EndTime "15:22:15 PST"]
[Termination "ChainsOfFantasia won by resignation"]

1. d4 {[%clk 0:03:01.9]} 1... Nf6 {[%clk 0:03:00.3]} 2. Nf3 {[%clk 0:03:01.8]}
2... e6 {[%clk 0:02:59]} 3. Bg5 {[%clk 0:03:02.5]} 3... d5 {[%clk 0:03:00.9]} 4.
e3 {[%clk 0:03:02.7]} 4... c5 {[%clk 0:03:00.1]} 5. c3 {[%clk 0:03:03.9]} 5...
Nc6 {[%clk 0:03:00.1]} 6. Nbd2 {[%clk 0:03:05.2]} 6... h6 {[%clk 0:03:00.6]} 7.
Bh4 {[%clk 0:03:06.1]} 7... Be7 {[%clk 0:03:00.4]} 8. Bd3 {[%clk 0:03:06.7]}
8... O-O {[%clk 0:02:58]} 9. O-O {[%clk 0:03:07.5]} 9... Nh5 {[%clk 0:02:55.5]}
10. Bxe7 {[%clk 0:03:08.1]} 10... Qxe7 {[%clk 0:02:57.4]} 11. Qe2 {[%clk
0:03:09.3]} 11... c4 {[%clk 0:02:44.5]} 12. Bc2 {[%clk 0:03:09.4]} 12... f5
{[%clk 0:02:45.1]} 13. Ne5 {[%clk 0:03:06.3]} 13... Qe8 {[%clk 0:02:09.1]} 14.
Ba4 {[%clk 0:03:02.8]} 14... Bd7 {[%clk 0:02:08.9]} 15. Bxc6 {[%clk 0:03:01.4]}
15... Bxc6 {[%clk 0:02:08.9]} 16. f4 {[%clk 0:02:54.8]} 16... Nf6 {[%clk
0:02:06.8]} 17. b3 {[%clk 0:02:54.9]} 17... b5 {[%clk 0:02:06]} 18. a4 {[%clk
0:02:49.1]} 18... cxb3 {[%clk 0:01:50.9]} 19. Nxc6 {[%clk 0:01:48]} 19... Qxc6
{[%clk 0:01:52.8]} 20. Nxb3 {[%clk 0:01:49.4]} 20... bxa4 {[%clk 0:01:39.2]} 21.
Nc5 {[%clk 0:01:48.5]} 21... Ne4 {[%clk 0:01:40.2]} 22. Nxe4 {[%clk 0:01:45.7]}
22... fxe4 {[%clk 0:01:34.4]} 23. Ra3 {[%clk 0:01:44.8]} 23... Rfc8 {[%clk
0:01:25.6]} 24. Rfa1 {[%clk 0:01:45.8]} 24... Qc4 {[%clk 0:01:19.4]} 25. Qg4
{[%clk 0:01:33.3]} 25... Rc6 {[%clk 0:01:14.2]} 26. h3 {[%clk 0:01:25.1]} 26...
Qd3 {[%clk 0:01:08.1]} 27. Rxa4 {[%clk 0:01:09.7]} 27... Qxe3+ {[%clk
0:01:07.1]} 28. Kh2 {[%clk 0:01:11]} 28... Qxc3 {[%clk 0:01:00.1]} 29. Rxa7
{[%clk 0:01:09.7]} 29... Rxa7 {[%clk 0:01:02]} 30. Rxa7 {[%clk 0:01:10.6]} 30...
Qxd4 {[%clk 0:01:03.6]} 31. Re7 {[%clk 0:00:52.7]} 31... Qf6 {[%clk 0:01:03.5]}
32. Re8+ {[%clk 0:00:53.7]} 32... Kh7 {[%clk 0:01:04.3]} 33. h4 {[%clk
0:00:34.7]} 33... Qg6 {[%clk 0:00:56.8]} 34. Qxg6+ {[%clk 0:00:28.2]} 34... Kxg6
{[%clk 0:00:57.4]} 35. Kg3 {[%clk 0:00:29.8]} 35... Kf7 {[%clk 0:00:56]} 36. Rd8
{[%clk 0:00:31.2]} 36... Rc3+ {[%clk 0:00:56.9]} 37. Kg4 {[%clk 0:00:32.2]}
37... g6 {[%clk 0:00:56.6]} 38. h5 {[%clk 0:00:27]} 38... gxh5+ {[%clk
0:00:57.2]} 39. Kxh5 {[%clk 0:00:28.5]} 39... Rg3 {[%clk 0:00:58.7]} 40. Rd7+
{[%clk 0:00:27.4]} 40... Kf6 {[%clk 0:00:59.5]} 0-1

[Event "*** Titled Tuesday Blitz"]
[Site "Chess.com"]
[Date "2018.12.04"]
[Round "10"]
[White "TheMagician"]
[Black "alishersuleymenov"]
[Result "0-1"]
[WhiteElo "2252"]
[BlackElo "2491"]
[TimeControl "180+2"]
[EndTime "15:22:16 PST"]
[Termination "alishersuleymenov won on time"]

1. e4 {[%clk 0:03:01.9]} 1... c5 {[%clk 0:03:00.7]} 2. Nf3 {[%clk 0:03:01.7]}
2... Nc6 {[%clk 0:02:51.5]} 3. Bb5 {[%clk 0:03:02.1]} 3... d6 {[%clk 0:02:52.4]}
4. O-O {[%clk 0:02:57.9]} 4... Bd7 {[%clk 0:02:53.5]} 5. c3 {[%clk 0:02:57]}
5... Nf6 {[%clk 0:02:53.8]} 6. Re1 {[%clk 0:02:57.1]} 6... a6 {[%clk 0:02:54.2]}
7. Bf1 {[%clk 0:02:52.9]} 7... Bg4 {[%clk 0:02:55]} 8. h3 {[%clk 0:02:53.4]}
8... Bh5 {[%clk 0:02:56.3]} 9. d3 {[%clk 0:02:49.1]} 9... e6 {[%clk 0:02:56.5]}
10. Nbd2 {[%clk 0:02:46]} 10... Be7 {[%clk 0:02:55.9]} 11. g4 {[%clk 0:02:46.2]}
11... Bg6 {[%clk 0:02:48.3]} 12. Bg2 {[%clk 0:02:42.7]} 12... O-O {[%clk
0:02:37.2]} 13. Qe2 {[%clk 0:02:39.6]} 13... Rc8 {[%clk 0:02:34.7]} 14. Nf1
{[%clk 0:02:36.1]} 14... b5 {[%clk 0:02:32.4]} 15. Ng3 {[%clk 0:02:36]} 15... d5
{[%clk 0:02:29.4]} 16. e5 {[%clk 0:02:36.3]} 16... Nd7 {[%clk 0:02:30.5]} 17. a3
{[%clk 0:02:21.1]} 17... a5 {[%clk 0:02:31.3]} 18. d4 {[%clk 0:02:16.5]} 18...
b4 {[%clk 0:02:18.5]} 19. axb4 {[%clk 0:02:14.8]} 19... axb4 {[%clk 0:02:19.4]}
20. Bf4 {[%clk 0:02:09.7]} 20... Qb6 {[%clk 0:02:19.5]} 21. Qe3 {[%clk
0:01:41.3]} 21... Na5 {[%clk 0:02:14.7]} 22. cxb4 {[%clk 0:01:34]} 22... cxb4
{[%clk 0:02:11.3]} 23. h4 {[%clk 0:01:28.9]} 23... Bc2 {[%clk 0:02:01]} 24. Bg5
{[%clk 0:01:17.2]} 24... Bxg5 {[%clk 0:01:46.5]} 25. Qxg5 {[%clk 0:01:17.3]}
25... Nb3 {[%clk 0:01:47.2]} 26. Nh5 {[%clk 0:01:06.5]} 26... Bg6 {[%clk
0:01:47.7]} 27. Rad1 {[%clk 0:01:04.4]} 27... Rc2 {[%clk 0:01:44.1]} 28. Qe3
{[%clk 0:00:54.1]} 28... Rxb2 {[%clk 0:01:32.3]} 29. Nf4 {[%clk 0:00:35]} 29...
Bc2 {[%clk 0:01:31.9]} 30. Nd3 {[%clk 0:00:20.1]} 30... Ra2 {[%clk 0:01:29.1]}
31. Nc1 {[%clk 0:00:11.9]} 31... Nxc1 {[%clk 0:01:23.8]} 32. Rxc1 {[%clk
0:00:11.4]} 32... b3 {[%clk 0:01:25.7]} 33. Nd2 {[%clk 0:00:04.3]} 33... Rc8
{[%clk 0:01:23]} 34. h5 {[%clk 0:00:04.3]} 34... h6 {[%clk 0:01:10]} 35. Nxb3
{[%clk 0:00:04.7]} 35... Ra3 {[%clk 0:01:09.3]} 0-1

[Event "*** Titled Tuesday Blitz"]
[Site "Chess.com"]
[Date "2018.12.04"]
[Round "10"]
[White "DeviatkinAndrey"]
[Black "BocharovD"]
[Result "0-1"]
[WhiteElo "2675"]
[BlackElo "2737"]
[TimeControl "180+2"]
[EndTime "15:22:21 PST"]
[Termination "BocharovD won on time"]

1. e4 {[%clk 0:03:01.9]} 1... c5 {[%clk 0:02:59.8]} 2. c3 {[%clk 0:03:02.7]}
2... Nf6 {[%clk 0:03:00.4]} 3. e5 {[%clk 0:03:03.6]} 3... Nd5 {[%clk 0:03:01.5]}
4. g3 {[%clk 0:03:03]} 4... d6 {[%clk 0:02:59.4]} 5. exd6 {[%clk 0:03:03.5]}
5... Qxd6 {[%clk 0:02:57]} 6. Bg2 {[%clk 0:03:04.5]} 6... Nc6 {[%clk 0:02:56.5]}
7. Ne2 {[%clk 0:03:04.9]} 7... e6 {[%clk 0:02:53.6]} 8. Na3 {[%clk 0:03:01.1]}
8... Be7 {[%clk 0:02:53.1]} 9. d4 {[%clk 0:02:57.2]} 9... O-O {[%clk 0:02:52.3]}
10. O-O {[%clk 0:02:54.6]} 10... Rd8 {[%clk 0:02:51.5]} 11. c4 {[%clk
0:02:50.4]} 11... Nf6 {[%clk 0:02:47.5]} 12. Bf4 {[%clk 0:02:50.7]} 12... Qd7
{[%clk 0:02:48.4]} 13. dxc5 {[%clk 0:02:45.5]} 13... Bxc5 {[%clk 0:02:47.5]} 14.
Nb5 {[%clk 0:02:29.3]} 14... Qe7 {[%clk 0:02:43.1]} 15. Qc1 {[%clk 0:01:38.6]}
15... a6 {[%clk 0:02:36.5]} 16. Nbc3 {[%clk 0:01:38.4]} 16... Bd7 {[%clk
0:02:17.5]} 17. a3 {[%clk 0:01:35.8]} 17... Rac8 {[%clk 0:02:16]} 18. b4 {[%clk
0:01:29.5]} 18... Bd6 {[%clk 0:02:14.1]} 19. Bxd6 {[%clk 0:01:29.2]} 19... Qxd6
{[%clk 0:02:14.8]} 20. c5 {[%clk 0:01:30.8]} 20... Qc7 {[%clk 0:02:09.6]} 21.
Qe3 {[%clk 0:01:29.1]} 21... Ne5 {[%clk 0:02:05.3]} 22. h3 {[%clk 0:01:23.8]}
22... Bc6 {[%clk 0:02:04.7]} 23. Bxc6 {[%clk 0:01:21.6]} 23... Nxc6 {[%clk
0:02:05.5]} 24. Rfd1 {[%clk 0:01:20.5]} 24... h5 {[%clk 0:02:02]} 25. Ne4 {[%clk
0:01:15.5]} 25... Qe5 {[%clk 0:01:57]} 26. Nxf6+ {[%clk 0:01:13.1]} 26... Qxf6
{[%clk 0:01:57.6]} 27. h4 {[%clk 0:01:08.1]} 27... Rd5 {[%clk 0:01:52.2]} 28.
Kg2 {[%clk 0:01:05.1]} 28... Rcd8 {[%clk 0:01:51]} 29. Nc3 {[%clk 0:00:57.5]}
29... Re5 {[%clk 0:01:41.8]} 30. Qf4 {[%clk 0:00:40.1]} 30... Rf5 {[%clk
0:01:39.5]} 31. Qe3 {[%clk 0:00:40.1]} 31... Rd4 {[%clk 0:01:32.4]} 32. Ne4
{[%clk 0:00:40.1]} 32... Rxe4 {[%clk 0:01:22.3]} 33. Qxe4 {[%clk 0:00:40.6]}
33... Rxf2+ {[%clk 0:01:23.7]} 34. Kg1 {[%clk 0:00:41.7]} 34... Ne5 {[%clk
0:01:21.3]} 35. Rd8+ {[%clk 0:00:36.1]} 35... Qxd8 {[%clk 0:01:21]} 36. Kxf2
{[%clk 0:00:36.5]} 36... Qd2+ {[%clk 0:01:19.5]} 37. Kg1 {[%clk 0:00:24.8]}
37... Ng4 {[%clk 0:01:13.4]} 38. Qf3 {[%clk 0:00:02.2]} 38... Qd4+ {[%clk
0:01:13.4]} 39. Kg2 {[%clk 0:00:03.3]} 39... Qb2+ {[%clk 0:01:14.3]} 0-1

[Event "*** Titled Tuesday Blitz"]
[Site "Chess.com"]
[Date "2018.12.04"]
[Round "10"]
[White "Benek77"]
[Black "731291"]
[Result "1-0"]
[WhiteElo "2623"]
[BlackElo "2594"]
[TimeControl "180+2"]
[EndTime "15:22:38 PST"]
[Termination "Benek77 won by checkmate"]

1. e4 {[%clk 0:03:01.1]} 1... e6 {[%clk 0:03:00.6]} 2. d4 {[%clk 0:03:02]} 2...
d5 {[%clk 0:03:02]} 3. exd5 {[%clk 0:03:03.6]} 3... exd5 {[%clk 0:03:01.5]} 4.
c4 {[%clk 0:03:05.5]} 4... Bb4+ {[%clk 0:02:59.7]} 5. Nc3 {[%clk 0:03:07.4]}
5... Ne7 {[%clk 0:02:58.6]} 6. Nf3 {[%clk 0:03:06.5]} 6... O-O {[%clk 0:02:57]}
7. Bd3 {[%clk 0:03:07.9]} 7... dxc4 {[%clk 0:02:52.3]} 8. Bxc4 {[%clk
0:03:09.3]} 8... Nbc6 {[%clk 0:02:53.7]} 9. O-O {[%clk 0:03:08.9]} 9... Bg4
{[%clk 0:02:54.4]} 10. a3 {[%clk 0:03:03]} 10... Bd6 {[%clk 0:02:47.1]} 11. h3
{[%clk 0:02:59.3]} 11... Bh5 {[%clk 0:02:47.1]} 12. g4 {[%clk 0:02:57.7]} 12...
Bg6 {[%clk 0:02:47.8]} 13. Re1 {[%clk 0:02:58.3]} 13... Nc8 {[%clk 0:02:21]} 14.
Bg5 {[%clk 0:02:51.6]} 14... Be7 {[%clk 0:02:15.7]} 15. Bxe7 {[%clk 0:02:49.5]}
15... N6xe7 {[%clk 0:02:17.6]} 16. Ne5 {[%clk 0:02:46]} 16... Nb6 {[%clk
0:02:15.9]} 17. Ba2 {[%clk 0:02:38.7]} 17... c6 {[%clk 0:02:13.7]} 18. Qf3
{[%clk 0:02:36]} 18... Qd6 {[%clk 0:01:56]} 19. Rad1 {[%clk 0:02:19.9]} 19...
Rad8 {[%clk 0:01:56.5]} 20. Rd2 {[%clk 0:02:06.9]} 20... Ned5 {[%clk 0:01:54.4]}
21. Rde2 {[%clk 0:02:01.3]} 21... f6 {[%clk 0:01:23.4]} 22. Nxg6 {[%clk
0:01:57]} 22... hxg6 {[%clk 0:01:25.3]} 23. Ne4 {[%clk 0:01:58.5]} 23... Qb8
{[%clk 0:01:18.4]} 24. Nc5 {[%clk 0:01:59.5]} 24... Rde8 {[%clk 0:01:19.3]} 25.
Ne6 {[%clk 0:01:47.9]} 25... Rf7 {[%clk 0:01:17.1]} 26. Bb1 {[%clk 0:01:49]}
26... Ne7 {[%clk 0:00:53]} 27. Nf4 {[%clk 0:01:40]} 27... g5 {[%clk 0:00:48.6]}
28. Ng6 {[%clk 0:01:32.6]} 28... Nbd5 {[%clk 0:00:45.8]} 29. Qe4 {[%clk
0:01:16.1]} 29... Nf4 {[%clk 0:00:33.4]} 30. Nxf4 {[%clk 0:00:33.7]} 30... gxf4
{[%clk 0:00:26.3]} 31. Qh7+ {[%clk 0:00:31.1]} 31... Kf8 {[%clk 0:00:27.3]} 32.
Qh8+ {[%clk 0:00:32.5]} 32... Ng8 {[%clk 0:00:28.8]} 33. Rxe8+ {[%clk
0:00:34.1]} 33... Qxe8 {[%clk 0:00:30.7]} 34. Rxe8+ {[%clk 0:00:35.3]} 34...
Kxe8 {[%clk 0:00:32.6]} 35. Qxg8+ {[%clk 0:00:36.8]} 35... Ke7 {[%clk
0:00:34.5]} 36. Bg6 {[%clk 0:00:36.4]} 36... Rf8 {[%clk 0:00:36.4]} 37. Qxg7+
{[%clk 0:00:37.2]} 37... Kd6 {[%clk 0:00:38.3]} 38. Qxf8+ {[%clk 0:00:38.6]}
38... Kd5 {[%clk 0:00:40.2]} 39. Qxf6 {[%clk 0:00:39.9]} 39... Kc4 {[%clk
0:00:41.3]} 40. Qxf4 {[%clk 0:00:40.9]} 40... Kb3 {[%clk 0:00:43.2]} 41. d5
{[%clk 0:00:42.1]} 41... Kxb2 {[%clk 0:00:44.7]} 42. d6 {[%clk 0:00:42.8]} 42...
Kxa3 {[%clk 0:00:46.6]} 43. d7 {[%clk 0:00:44.7]} 43... Kb3 {[%clk 0:00:47.8]}
44. d8=Q {[%clk 0:00:46.6]} 44... Ka3 {[%clk 0:00:49.7]} 45. h4 {[%clk
0:00:47.3]} 45... Kb3 {[%clk 0:00:51.6]} 46. h5 {[%clk 0:00:49.2]} 46... Ka3
{[%clk 0:00:53.5]} 47. h6 {[%clk 0:00:51.1]} 47... Kb3 {[%clk 0:00:55.4]} 48. h7
{[%clk 0:00:53]} 48... Ka3 {[%clk 0:00:57.3]} 49. h8=Q {[%clk 0:00:54.9]} 49...
Kb3 {[%clk 0:00:59.2]} 50. Bf7+ {[%clk 0:00:56.2]} 50... Ka3 {[%clk 0:01:01.1]}
51. g5 {[%clk 0:00:58.1]} 51... a5 {[%clk 0:01:01.2]} 52. g6 {[%clk 0:01:00]}
52... a4 {[%clk 0:01:03.1]} 53. g7 {[%clk 0:01:01.9]} 53... b5 {[%clk 0:01:05]}
54. g8=Q {[%clk 0:01:03.8]} 54... b4 {[%clk 0:01:06.9]} 55. Qfd6 {[%clk
0:01:04.3]} 55... c5 {[%clk 0:01:08.8]} 56. Bc4 {[%clk 0:01:05.2]} 56... b3
{[%clk 0:01:10.2]} 57. f4 {[%clk 0:01:07.1]} 57... b2 {[%clk 0:01:12.1]} 58.
Qc3# {[%clk 0:01:06.1]} 1-0